bitfinex/quotes_BTCUSD_20250617
["timestamp","ask_amount","ask_price","bid_price","bid_amount"]
[1750182403393,0.41811788,103880.0,103870.0,0.29528329]
[1750182403617,0.62990097,103880.0,103870.0,0.30491015]
[1750182403830,0.62027504,103880.0,103870.0,0.29528329]
[1750182404272,0.62027504,103880.0,103870.0,0.30491015]
[1750182404960,0.05886565,103880.0,103870.0,0.31453692]
[1750182405194,0.07811742,103880.0,103870.0,0.31453692]
[1750182405456,0.08774372,103880.0,103870.0,0.31453692]
[1750182405688,0.09737011,103880.0,103870.0,0.31453692]
[1750182405908,0.08474372,103880.0,103870.0,0.31453692]
[1750182406135,0.09436993,103880.0,103870.0,0.31553692]
[1750182406355,0.09437067,103880.0,103870.0,0.29775618]
[1750182407021,0.09437067,103880.0,103870.0,0.46535618]
[1750182407472,0.06549177,103880.0,103870.0,0.46535618]
[1750182408565,0.05586575,103880.0,103870.0,0.46535618]
[1750182408781,0.05586565,103880.0,103870.0,0.46535618]
[1750182409031,0.0654914,103880.0,103870.0,0.46535618]
[1750182409275,0.07511733,103880.0,103870.0,0.46535618]
[1750182409969,0.09436965,103880.0,103870.0,0.46535618]
[1750182410203,0.08474335,103880.0,103870.0,0.46535618]
[1750182410444,0.23336285,103900.0,103890.0,0.00962556]
[1750182410673,0.61007627,103900.0,103890.0,0.24426225]
[1750182411130,0.68695679,103900.0,103890.0,0.0325]
[1750182411352,1.01733243,103900.0,103890.0,0.0325]
[1750182411574,0.20213669,103890.0,103880.0,0.44316244]
[1750182411921,0.61901721,103890.0,103880.0,0.45278846]
[1750182412008,0.62864249,103890.0,103880.0,0.45278846]
[1750182412230,0.02887576,103890.0,103880.0,0.4624143]
[1750182412893,1.0077078,103900.0,103890.0,0.29521198]
[1750182412894,0.39596642,103900.0,103890.0,0.29521198]
[1750182413358,0.04634243,103900.0,103890.0,0.29521198]
[1750182415392,0.28033235,103900.0,103890.0,0.29521198]
[1750182415606,0.28033235,103900.0,103890.0,0.27596197]
[1750182415831,0.69721287,103900.0,103890.0,0.29521207]
[1750182416278,0.50472,103900.0,103890.0,0.30483698]
[1750182416492,0.49509546,103900.0,103890.0,0.30483698]
[1750182416951,0.48547101,103900.0,103890.0,0.30483698]
[1750182417199,0.00314243,103900.0,103890.0,0.38084584]
[1750182417438,0.01137881,103940.0,103890.0,1.10983359]
[1750182417666,0.00962121,103930.0,103920.0,0.28450625]
[1750182417900,0.07714473,103940.0,103930.0,0.25563721]
[1750182418131,0.05596289,103940.0,103930.0,0.28450167]
[1750182418600,0.06558326,103940.0,103930.0,0.28450167]
[1750182419053,0.0001427,103940.0,103930.0,0.28450167]
[1750182419275,0.0021427,103940.0,103930.0,0.28450167]
[1750182419742,0.0021427,103940.0,103930.0,0.38074343]
[1750182419745,0.0050222,103980.0,103970.0,0.22121653]
[1750182419997,0.10114532,103990.0,103980.0,0.22119526]
[1750182420250,0.01970891,103980.0,103970.0,0.28060853]
[1750182420514,0.02885557,103960.0,103950.0,0.0647]
[1750182420751,0.43611766,103960.0,103950.0,0.29557873]
[1750182420986,0.00962019,103940.0,103930.0,0.27737972]
[1750182421212,0.41688052,103940.0,103930.0,0.32436159]
[1750182421432,0.43612099,103940.0,103930.0,0.49160159]
[1750182421655,0.23090057,103940.0,103930.0,0.26775888]
[1750182421886,0.64778109,103940.0,103930.0,0.0336]
[1750182422120,0.22128103,103940.0,103930.0,0.21268065]
[1750182422345,0.63816155,103940.0,103930.0,0.3895025]
[1750182422564,0.63816155,103940.0,103930.0,0.39912399]
[1750182422789,0.62854099,103940.0,103930.0,0.37025907]
[1750182423011,0.62954099,103940.0,103930.0,0.37025907]
[1750182423236,0.62854099,103940.0,103930.0,0.37025907]
[1750182423521,0.62854099,103940.0,103930.0,0.38938232]
[1750182423746,0.21166047,103940.0,103930.0,0.39338232]
[1750182423968,0.21166047,103940.0,103930.0,0.41262501]
[1750182424197,0.62854099,103940.0,103930.0,0.38376083]
[1750182424427,0.21166047,103940.0,103930.0,0.39538241]
[1750182424649,0.62854099,103940.0,103930.0,0.41458529]
[1750182424878,0.62854099,103940.0,103930.0,0.41458473]
[1750182425126,0.02886159,103940.0,103930.0,0.41458418]
[1750182425376,0.01924084,103940.0,103930.0,0.41458418]
[1750182425615,0.26748029,103940.0,103930.0,0.38572028]
[1750182426128,0.26748029,103940.0,103930.0,0.21868065]
[1750182426364,0.52925887,103940.0,103930.0,0.17388]
[1750182426595,0.0654414,103940.0,103930.0,0.21868027]
[1750182426821,0.67474062,103940.0,103930.0,0.39518176]
[1750182427057,0.77325538,103940.0,103930.0,0.003]
[1750182427282,0.77325538,103940.0,103930.0,0.16996]
[1750182427516,0.77098266,103940.0,103930.0,0.38264046]
[1750182427752,0.77098266,103940.0,103930.0,0.39517322]
[1750182427989,0.77098266,103940.0,103930.0,0.3951734]
[1750182428224,0.68436128,103940.0,103930.0,0.40479489]
[1750182428451,0.68436128,103940.0,103930.0,0.18349276]
[1750182428452,0.67474081,103940.0,103930.0,0.18349276]
[1750182428711,0.67474081,103940.0,103930.0,0.39226214]
[1750182428946,0.05582075,103940.0,103930.0,0.40188335]
[1750182429176,0.69620314,103940.0,103930.0,0.17096]
[1750182429406,0.06544047,103940.0,103930.0,0.39226167]
[1750182429635,0.08468159,103940.0,103930.0,0.45566167]
[1750182429870,0.08468159,103940.0,103930.0,0.28870167]
[1750182430094,0.07506094,103940.0,103930.0,0.45558167]
[1750182430554,0.08500159,103940.0,103930.0,0.45558167]
[1750182431509,0.028905,103950.0,103940.0,0.22128065]
[1750182431512,0.42504454,103950.0,103940.0,0.26170093]
[1750182431740,0.38814381,103950.0,103940.0,0.26170093]
[1750182431968,0.43466399,103950.0,103940.0,0.29350093]
[1750182432209,0.62706418,103950.0,103940.0,0.0308]
[1750182432452,0.24854001,103950.0,103940.0,0.2424135]
[1750182432727,0.66542053,103950.0,103930.0,0.27528]
[1750182432959,0.01924075,103940.0,103930.0,0.45206112]
[1750182433193,0.63816155,103940.0,103930.0,0.24348]
[1750182433428,0.63816155,103940.0,103930.0,0.37984]
[1750182433666,0.63816155,103940.0,103930.0,0.37984046]
[1750182433920,0.63816155,103940.0,103930.0,0.001]
[1750182434151,0.61892015,103940.0,103930.0,0.20305897]
[1750182434375,0.61892015,103940.0,103930.0,0.001]
[1750182434606,0.61892015,103940.0,103930.0,0.20305907]
[1750182434859,0.61892015,103940.0,103930.0,0.001]
[1750182435095,0.61892015,103940.0,103930.0,0.20305897]
[1750182435339,0.61892015,103940.0,103930.0,0.001]
[1750182435563,0.60929922,103940.0,103930.0,0.19343721]
[1750182435779,0.60929922,103940.0,103930.0,0.21368064]
[1750182436012,0.23892019,103950.0,103940.0,0.20203963]
[1750182436232,0.00961991,103950.0,103940.0,0.23090131]
[1750182436477,0.26777973,103950.0,103940.0,0.23090131]
[1750182436704,0.07537881,103950.0,103940.0,0.23090131]
[1750182436926,0.02885881,103950.0,103940.0,0.28051094]
[1750182437155,0.65740008,103960.0,103950.0,0.21163955]
[1750182437371,0.35438132,103960.0,103950.0,0.20202001]
[1750182437585,0.35438132,103960.0,103950.0,0.21163974]
[1750182437819,0.25813956,103960.0,103950.0,0.23087891]
[1750182438028,0.43611784,103960.0,103950.0,0.23087891]
[1750182438241,0.68459841,103960.0,103950.0,0.23087891]
[1750182438462,0.69421749,103960.0,103950.0,0.23087891]
[1750182438679,0.66536128,103960.0,103940.0,0.44421917]
[1750182438899,0.21163928,103950.0,103940.0,0.43459935]
[1750182439181,0.6381398,103950.0,103940.0,0.27526028]
[1750182439395,0.2116601,103940.0,103930.0,0.20305907]
[1750182439606,0.62854062,103940.0,103930.0,0.21268065]
[1750182440025,0.61891997,103940.0,103930.0,0.21268083]
[1750182440234,0.62853988,103940.0,103930.0,0.22230204]
[1750182440499,0.45536286,103940.0,103930.0,0.23192324]
[1750182440687,0.43612118,103940.0,103930.0,0.24354445]
[1750182440941,0.2116401,103950.0,103940.0,0.21165992]
[1750182441178,0.23267899,103950.0,103940.0,0.23090039]
[1750182441407,0.07533881,103950.0,103940.0,0.23090039]
[1750182441647,0.68461961,103950.0,103940.0,0.23493945]
[1750182441874,0.67500016,103950.0,103940.0,0.20203945]
[1750182442331,0.20203935,103940.0,103930.0,0.25963721]
[1750182442584,0.62854071,103940.0,103930.0,0.001]
[1750182442840,0.60304201,103940.0,103930.0,0.21368037]
[1750182443119,0.80508164,103940.0,103930.0,0.19443721]
[1750182443359,0.80508164,103940.0,103930.0,0.22230232]
[1750182443595,0.80508164,103940.0,103930.0,0.23192371]
[1750182443838,0.61266294,103940.0,103930.0,0.2339239]
[1750182444069,0.80508164,103940.0,103930.0,0.003]
[1750182444289,0.80508164,103940.0,103930.0,0.22330232]
[1750182444503,0.80508164,103940.0,103930.0,0.21368083]
[1750182444715,0.79546099,103940.0,103930.0,0.003]
[1750182444930,0.78584015,103940.0,103930.0,0.003]
[1750182445382,0.92642683,103940.0,103930.0,0.003]
[1750182445613,0.88208191,103940.0,103930.0,0.003]
[1750182446049,0.71516191,103940.0,103930.0,0.21468083]
[1750182446270,0.71516191,103940.0,103930.0,0.22430232]
[1750182446497,0.0096201,103940.0,103930.0,0.29712223]
[1750182446722,0.01924038,103940.0,103930.0,0.34607835]
[1750182447149,0.01924047,103940.0,103930.0,0.34607835]
[1750182447151,0.01923917,103950.0,103940.0,0.22128038]
[1750182447370,0.28697835,103950.0,103940.0,0.28738038]
[1750182447594,0.02885862,103950.0,103940.0,0.28738038]
[1750182447818,0.02885862,103950.0,103940.0,0.28737973]
[1750182447819,0.05609917,103950.0,103940.0,0.28737973]
[1750182448266,0.07533603,103960.0,103950.0,0.28575909]
[1750182448491,0.09480062,103970.0,103960.0,0.20200067]
[1750182448721,0.4155195,103970.0,103960.0,0.21161938]
[1750182448939,0.06571548,103970.0,103960.0,0.30527495]
[1750182449387,0.27731394,103970.0,103960.0,0.26680067]
[1750182449634,0.27731394,103970.0,103960.0,0.25363827]
[1750182449635,0.50183211,103970.0,103960.0,0.25363827]
[1750182449843,0.68457714,103970.0,103960.0,0.25363827]
[1750182450061,0.49421387,103970.0,103960.0,0.27287532]
[1750182450287,0.6961952,103970.0,103960.0,0.26325689]
[1750182450507,0.49605411,103970.0,103960.0,0.21161938]
[1750182450732,0.05809741,103970.0,103960.0,0.25423781]
[1750182451030,0.0677151,103970.0,103960.0,0.28663781]
[1750182451276,0.21161956,103960.0,103950.0,0.26741973]
[1750182451499,0.02885576,103960.0,103950.0,0.46307836]
[1750182451719,0.03847465,103960.0,103950.0,0.29627836]
[1750182451939,0.01923696,103960.0,103950.0,0.29627836]
[1750182452164,0.02885585,103960.0,103950.0,0.29627836]
[1750182452391,0.01923696,103960.0,103950.0,0.46307836]
[1750182452849,0.48259627,103970.0,103960.0,0.22123781]
[1750182453073,0.69419511,103970.0,103960.0,0.22123781]
[1750182453301,0.69419511,103970.0,103960.0,0.21161938]
[1750182453592,0.06571557,103970.0,103960.0,0.2212379]
[1750182453811,0.26769653,103970.0,103960.0,0.221238]
[1750182454028,0.26769653,103970.0,103960.0,0.24047495]
[1750182454248,0.02885326,103970.0,103960.0,0.24047495]
[1750182454470,0.06571529,103970.0,103960.0,0.24047495]
[1750182454695,0.02885326,103970.0,103960.0,0.24047495]
[1750182454962,0.06571529,103970.0,103960.0,0.24047495]
[1750182455185,0.0192377,103960.0,103950.0,0.50550191]
[1750182455403,0.02885613,103960.0,103950.0,0.420979]
[1750182455620,0.23085689,103960.0,103950.0,0.41135964]
[1750182455849,0.64773741,103960.0,103950.0,0.19240019]
[1750182456071,0.21163899,103950.0,103940.0,0.43024122]
[1750182456293,0.0192388,103950.0,103940.0,0.26340122]
[1750182456514,0.00961926,103950.0,103940.0,0.46046122]
[1750182456744,0.02885862,103950.0,103940.0,0.26463926]
[1750182456967,0.68461933,103950.0,103940.0,0.21166019]
[1750182457186,0.67500007,103950.0,103940.0,0.1924187]
[1750182457447,0.00962065,103940.0,103930.0,0.38818074]
[1750182457666,0.0096201,103940.0,103930.0,0.38818074]
[1750182457898,0.48259988,103950.0,103940.0,0.21165992]
[1750182458114,0.69423933,103950.0,103940.0,0.2212802]
[1750182458340,0.69423933,103950.0,103940.0,0.21365992]
[1750182458564,0.69423933,103950.0,103940.0,0.2136601]
[1750182458816,0.69423933,103950.0,103940.0,0.22228057]
[1750182459036,0.69423933,103950.0,103940.0,0.1934187]
[1750182459265,0.25812001,103950.0,103940.0,0.1934187]
[1750182459490,0.25812001,103950.0,103940.0,0.2126601]
[1750182459706,0.06571982,103950.0,103940.0,0.22428056]
[1750182459937,0.07533862,103950.0,103940.0,0.30819685]
[1750182460156,0.0657188,103950.0,103940.0,0.26460084]
[1750182460369,0.27735881,103950.0,103940.0,0.26460084]
[1750182460596,0.07533862,103950.0,103940.0,0.26460084]
[1750182460823,0.08495853,103950.0,103940.0,0.26460084]
[1750182461736,0.08499835,103950.0,103940.0,0.29470084]
[1750182461957,0.09461826,103950.0,103940.0,0.29470084]
[1750182462173,0.07537853,103950.0,103940.0,0.26460084]
[1750182462397,0.27739854,103950.0,103940.0,0.26460084]
[1750182462658,0.08499835,103950.0,103940.0,0.29720084]
[1750182463024,0.09461826,103950.0,103940.0,0.29720084]
[1750182463246,0.28701919,103950.0,103940.0,0.29720084]
[1750182463448,0.06575927,103950.0,103940.0,0.29720084]
[1750182463877,0.07537909,103950.0,103940.0,0.29720084]
[1750182464060,0.26777928,103950.0,103940.0,0.28758056]
[1750182464270,0.07537909,103950.0,103940.0,0.29720103]
[1750182464491,0.26777928,103950.0,103940.0,0.28758075]
[1750182464699,0.084999,103950.0,103940.0,0.30682159]
[1750182464903,0.02885909,103950.0,103940.0,0.30682103]
[1750182465152,0.084999,103950.0,103940.0,0.30682103]
[1750182465359,0.27739919,103950.0,103940.0,0.25498038]
[1750182465797,0.69427971,103950.0,103940.0,0.21465991]
[1750182466011,0.66542062,103950.0,103940.0,0.003]
[1750182466645,0.65580071,103950.0,103940.0,0.003]
[1750182467100,0.78454247,103950.0,103940.0,0.003]
[1750182467306,0.83118332,103950.0,103940.0,0.003]
[1750182467512,0.86008832,103950.0,103940.0,0.003]
[1750182467723,0.4432078,103950.0,103940.0,0.003]
[1750182467930,0.79548832,103950.0,103940.0,0.003]
[1750182468131,0.79548832,103950.0,103940.0,0.001]
[1750182468338,0.3786078,103950.0,103940.0,0.00088979]
[1750182468542,0.79548832,103950.0,103940.0,0.00088979]
[1750182468948,0.20203945,103940.0,103930.0,0.20205889]
[1750182469179,0.79590062,103940.0,103930.0,0.22130177]
[1750182469386,0.00962037,103940.0,103930.0,0.26672963]
[1750182469599,0.24266159,103940.0,103930.0,0.34005084]
[1750182470012,0.0096201,103940.0,103930.0,0.34005084]
[1750182470291,0.0481438,103950.0,103940.0,0.22128038]
[1750182470499,0.11390353,103950.0,103940.0,0.28498038]
[1750182470727,0.08499853,103950.0,103940.0,0.28498038]
[1750182470932,0.07537862,103950.0,103940.0,0.28498038]
[1750182471284,0.26777946,103950.0,103940.0,0.30487231]
[1750182471486,0.00962019,103940.0,103930.0,0.41197946]
[1750182471683,0.00962019,103940.0,103930.0,0.44357946]
[1750182471890,0.00962019,103940.0,103930.0,0.44257946]
[1750182472128,0.01924056,103940.0,103930.0,0.44257946]
[1750182472446,0.01924056,103940.0,103930.0,0.50608288]
[1750182472668,0.02886112,103940.0,103930.0,0.50608288]
[1750182472875,0.64778173,103940.0,103930.0,0.21168056]
[1750182473083,0.64778173,103940.0,103930.0,0.39146205]
[1750182473298,0.4457421,103940.0,103930.0,0.24354474]
[1750182473550,0.4457421,103940.0,103930.0,0.24354419]
[1750182473551,0.65740239,103940.0,103930.0,0.24354419]
[1750182473770,0.24052187,103940.0,103930.0,0.23392298]
[1750182473977,0.2309015,103940.0,103930.0,0.21468029]
[1750182474177,0.2309015,103940.0,103930.0,0.23392298]
[1750182474390,0.23090187,103940.0,103930.0,0.23392298]
[1750182474614,0.23090187,103940.0,103930.0,0.003]
[1750182474615,0.22128122,103940.0,103930.0,0.003]
[1750182474832,0.61892015,103940.0,103930.0,0.003]
[1750182477498,0.61892015,103940.0,103930.0,0.21468046]
[1750182477714,0.20203963,103940.0,103930.0,0.20505888]
[1750182477948,0.20203963,103940.0,103930.0,0.19543721]
[1750182478163,0.24855963,103940.0,103930.0,0.21468065]
[1750182478406,0.26780065,103940.0,103930.0,0.32927735]
[1750182478637,0.07538177,103940.0,103930.0,0.33889856]
[1750182478841,0.08500261,103940.0,103930.0,0.33889856]
[1750182479059,0.01924047,103940.0,103930.0,0.33889856]
[1750182479278,0.07538094,103940.0,103930.0,0.33889856]
[1750182479496,0.08500169,103940.0,103930.0,0.33889856]
[1750182479711,0.07538094,103940.0,103930.0,0.33889856]
[1750182479921,0.08500169,103940.0,103930.0,0.33889856]
[1750182480346,0.07538094,103940.0,103930.0,0.33889856]
[1750182480779,0.51150314,103940.0,103930.0,0.25873721]
[1750182481003,0.68468146,103940.0,103930.0,0.24748065]
[1750182481424,0.66544015,103940.0,103930.0,0.20505907]
[1750182481696,0.65581922,103940.0,103930.0,0.003]
[1750182483503,0.1924187,103940.0,103930.0,0.20505897]
[1750182483717,0.21165982,103940.0,103930.0,0.29980182]
[1750182483931,0.06580103,103940.0,103930.0,0.34122238]
[1750182484124,0.55163992,103950.0,103940.0,0.1924187]
[1750182484410,0.86108168,103950.0,103940.0,0.21166019]
[1750182484628,0.6381612,103960.0,103950.0,0.0319]
[1750182484629,0.26779827,103960.0,103950.0,0.0319]
[1750182484850,0.26827383,103960.0,103950.0,0.2339201]
[1750182485288,0.26827383,103960.0,103950.0,0.24353992]
[1750182485584,0.26827383,103960.0,103950.0,0.27533992]
[1750182485794,0.26827383,103960.0,103950.0,0.29457919]
[1750182486230,0.27027383,103960.0,103950.0,0.29457919]
[1750182486431,0.19240019,103950.0,103940.0,0.27685991]
[1750182486686,0.19240019,103950.0,103940.0,0.28648084]
[1750182486687,0.21163936,103950.0,103940.0,0.28648084]
[1750182486900,0.43612007,103950.0,103940.0,0.29610112]
[1750182487120,0.0192388,103950.0,103940.0,0.29610112]
[1750182487339,0.63813979,103950.0,103940.0,0.27686047]
[1750182487562,0.62852025,103950.0,103940.0,0.0329]
[1750182487785,0.20203945,103940.0,103930.0,0.4525013]
[1750182488010,0.63816174,103940.0,103930.0,0.26665888]
[1750182488451,0.63816174,103940.0,103930.0,0.22393721]
[1750182488684,0.61892015,103940.0,103920.0,0.48028076]
[1750182488897,0.61892015,103940.0,103930.0,0.19243721]
[1750182489113,0.61892015,103940.0,103930.0,0.20305897]
[1750182489401,0.61892015,103940.0,103930.0,0.20505897]
[1750182489607,0.61892015,103940.0,103930.0,0.001]
[1750182490253,0.61892015,103940.0,103930.0,0.20305907]
[1750182490468,0.61892015,103940.0,103930.0,0.2213025]
[1750182490690,0.6285408,103940.0,103930.0,0.24054519]
[1750182490936,0.6285408,103940.0,103930.0,0.2213025]
[1750182491369,0.01924269,103930.0,103920.0,0.44545425]
[1750182491593,0.03848557,103930.0,103920.0,0.44233481]
[1750182491784,0.23092278,103930.0,103920.0,0.28551704]
[1750182492054,0.08468557,103930.0,103920.0,0.27589481]
[1750182492281,0.28674464,103930.0,103920.0,0.28551713]
[1750182492536,0.67476126,103930.0,103920.0,0.0352]
[1750182492775,0.56894414,103930.0,103920.0,0.004]
[1750182493016,0.79328135,103930.0,103920.0,0.004]
[1750182493462,0.79328135,103930.0,103900.0,0.45263554]
[1750182493463,0.02887029,103910.0,103900.0,0.45263554]
[1750182493709,0.02887029,103910.0,103900.0,0.2754921]
[1750182493710,0.22134454,103910.0,103900.0,0.2754921]
[1750182493938,0.61897848,103910.0,103890.0,0.21169165]
[1750182494154,0.61897848,103910.0,103890.0,0.45403223]
[1750182494155,0.00962445,103900.0,103890.0,0.45403223]
[1750182494401,0.684446,103900.0,103890.0,0.20213678]
[1750182494634,0.684446,103900.0,103890.0,0.21176197]
[1750182494864,0.69416194,103900.0,103890.0,0.22138697]
[1750182495109,0.0097152,103900.0,103890.0,0.23101188]
[1750182495336,9.14e-05,103900.0,103890.0,0.35901367]
[1750182495547,9.14e-05,103900.0,103890.0,0.43693305]
[1750182495811,9.14e-05,103900.0,103890.0,0.53317481]
[1750182496019,9.14e-05,103900.0,103890.0,0.53517481]
[1750182496719,9.14e-05,103900.0,103890.0,0.53417481]
[1750182497439,9.14e-05,103900.0,103890.0,0.45725543]
[1750182498610,9.14e-05,103900.0,103890.0,0.46125543]
[1750182500897,9.14e-05,103900.0,103890.0,0.39805364]
[1750182501607,9.14e-05,103900.0,103890.0,0.84343834]
[1750182501857,9.14e-05,103900.0,103890.0,1.18343834]
[1750182502114,9.14e-05,103900.0,103890.0,0.76659782]
[1750182502348,9.14e-05,103900.0,103890.0,1.18347834]
[1750182502865,9.14e-05,103900.0,103890.0,1.00144286]
[1750182503105,9.14e-05,103900.0,103890.0,0.99744286]
[1750182503339,0.0010914,103900.0,103890.0,1.02603517]
[1750182503564,9.14e-05,103900.0,103890.0,1.02403517]
[1750182503792,9.14e-05,103900.0,103890.0,0.85683517]
[1750182504012,0.0020914,103900.0,103890.0,1.06279825]
[1750182504230,0.0020914,103900.0,103890.0,1.02467517]
[1750182504449,0.0020914,103900.0,103890.0,1.06271825]
[1750182504736,0.0020914,103900.0,103890.0,1.02459517]
[1750182504949,0.0020914,103900.0,103890.0,0.85683517]
[1750182505167,0.0020914,103900.0,103890.0,1.02459517]
[1750182506750,0.0020914,103900.0,103890.0,0.92844595]
[1750182506967,0.0020914,103900.0,103890.0,0.92836595]
[1750182507204,0.0020914,103900.0,103890.0,0.76068595]
[1750182507426,0.0020914,103900.0,103890.0,0.56061364]
[1750182508331,0.0020914,103900.0,103890.0,0.97753416]
[1750182508621,0.0020914,103900.0,103890.0,0.58924595]
[1750182508647,0.0020914,103900.0,103890.0,0.68539517]
[1750182509477,0.0020914,103900.0,103890.0,0.56065364]
[1750182509687,0.0020914,103900.0,103890.0,0.39209364]
[1750182509688,0.42859591,103900.0,103890.0,0.39209364]
[1750182509899,0.64033749,103900.0,103890.0,0.22142706]
[1750182510116,0.6307135,103900.0,103890.0,4e-05]
[1750182510327,0.6638135,103900.0,103890.0,0.21180216]
[1750182510545,0.6638135,103900.0,103890.0,4e-05]
[1750182510953,0.6638135,103900.0,103890.0,0.00104]
[1750182511184,0.67499913,103900.0,103890.0,0.00104]
[1750182511388,0.67299913,103900.0,103890.0,0.00104]
[1750182511795,0.67299913,103900.0,103890.0,0.20317678]
[1750182512000,0.25611861,103900.0,103890.0,0.00104]
[1750182512216,0.25611861,103900.0,103890.0,0.20717687]
[1750182512461,0.0289641,103900.0,103890.0,0.30646384]
[1750182512663,0.26965688,103900.0,103890.0,0.29683893]
[1750182512870,0.26003289,103900.0,103890.0,0.236053]
[1750182513095,0.48442063,103900.0,103890.0,0.24567773]
[1750182513285,0.49404517,103900.0,103890.0,0.24567679]
[1750182513500,0.27928206,103900.0,103890.0,0.23605188]
[1750182513703,0.28996754,103900.0,103890.0,0.23605188]
[1750182514309,0.28034328,103900.0,103890.0,0.00504]
[1750182514517,0.71037481,103900.0,103890.0,0.00504]
[1750182514980,0.71037481,103900.0,103890.0,0.19755131]
[1750182515134,0.67797481,103900.0,103890.0,0.20717678]
[1750182515333,0.67797481,103900.0,103890.0,0.00504]
[1750182515540,0.80741657,103900.0,103890.0,0.00504]
[1750182515748,0.77421657,103900.0,103890.0,0.20717687]
[1750182516582,0.77421657,103900.0,103890.0,0.21680225]
[1750182516980,0.52389916,103900.0,103890.0,0.22642762]
[1750182517194,0.28034264,103900.0,103890.0,0.21680234]
[1750182517387,0.27071856,103900.0,103890.0,0.21680234]
[1750182517590,0.67797472,103900.0,103890.0,0.00504]
[1750182517825,0.71117472,103900.0,103890.0,0.00504]
[1750182518230,0.71117472,103900.0,103890.0,0.20717678]
[1750182518429,0.71117472,103900.0,103890.0,0.00504]
[1750182518635,0.67797472,103900.0,103890.0,0.20717669]
[1750182518833,0.67797472,103900.0,103890.0,0.20717687]
[1750182519032,0.69875018,103900.0,103890.0,0.00504]
[1750182519242,0.82779194,103900.0,103890.0,0.00504]
[1750182520305,0.41091142,103900.0,103890.0,0.00504]
[1750182520481,0.82779194,103900.0,103890.0,0.00504]
[1750182521309,1.16779194,103900.0,103890.0,0.00504]
[1750182521800,1.29348056,103900.0,103890.0,0.19755131]
[1750182522007,0.87656004,103900.0,103890.0,0.19755131]
[1750182522207,0.65876004,103900.0,103890.0,0.20317669]
[1750182522365,0.87664004,103900.0,103890.0,0.20317669]
[1750182522553,0.65876004,103900.0,103890.0,0.21480197]
[1750182522771,0.28034217,103900.0,103890.0,0.29705188]
[1750182523128,0.29959134,103900.0,103890.0,0.29605188]
[1750182523332,0.70684797,103900.0,103890.0,0.21480197]
[1750182523543,0.68759935,103900.0,103890.0,0.00304]
[1750182523729,0.68759935,103900.0,103890.0,0.20517678]
[1750182523975,0.68759935,103900.0,103890.0,0.19455131]
[1750182524103,0.68759935,103900.0,103890.0,0.20617678]
[1750182524504,1.17779935,103900.0,103890.0,0.20617678]
[1750182524780,1.17779935,103900.0,103890.0,0.00404]
[1750182525010,0.76091883,103900.0,103890.0,0.21017687]
[1750182525222,1.17779935,103900.0,103890.0,0.01766556]
[1750182525436,1.17779935,103900.0,103890.0,0.21017678]
[1750182526082,1.17779935,103900.0,103890.0,0.21980216]
[1750182526318,1.17779935,103900.0,103890.0,0.21017678]
[1750182526531,1.17779898,103900.0,103890.0,0.23905216]
[1750182526750,1.18742361,103900.0,103890.0,0.22942725]
[1750182527539,1.18742361,103900.0,103890.0,0.21980206]
[1750182527775,1.17779935,103900.0,103890.0,0.21980206]
[1750182528007,1.17779935,103900.0,103890.0,0.00804]
[1750182528008,1.16817481,103900.0,103890.0,0.00804]
[1750182528349,1.26441657,103900.0,103890.0,0.00804]
[1750182529824,1.26441657,103900.0,103890.0,0.00604]
[1750182530219,1.26441657,103900.0,103890.0,0.00704]
[1750182530466,1.29681657,103900.0,103890.0,0.00104]
[1750182530689,1.32901657,103900.0,103890.0,0.00304]
[1750182531327,1.32901657,103900.0,103890.0,0.19555131]
[1750182531547,0.84753605,103900.0,103890.0,0.21480234]
[1750182531794,0.4902914,103900.0,103890.0,0.47672829]
[1750182532000,0.4902914,103900.0,103890.0,0.89360881]
[1750182532224,0.4902914,103900.0,103890.0,0.47672829]
[1750182533281,0.4902914,103900.0,103890.0,0.47572829]
[1750182533489,0.4902914,103900.0,103890.0,0.47372829]
[1750182533713,0.4902914,103900.0,103890.0,0.31136829]
[1750182533952,9.14e-05,103900.0,103890.0,1.02292288]
[1750182534158,9.14e-05,103900.0,103890.0,1.02092288]
[1750182534810,9.14e-05,103900.0,103890.0,1.36392288]
[1750182535023,9.14e-05,103900.0,103890.0,1.3879945]
[1750182535261,9.14e-05,103900.0,103890.0,1.44517912]
[1750182535483,9.14e-05,103900.0,103890.0,1.45705604]
[1750182535906,9.14e-05,103900.0,103890.0,1.04017552]
[1750182536122,9.14e-05,103900.0,103890.0,1.23721604]
[1750182536348,9.14e-05,103900.0,103890.0,1.44214742]
[1750182536577,9.14e-05,103900.0,103890.0,1.43714742]
[1750182536794,9.14e-05,103900.0,103890.0,1.0202669]
[1750182537004,9.14e-05,103900.0,103890.0,1.43714742]
[1750182538106,9.14e-05,103900.0,103890.0,1.42817074]
[1750182538311,9.14e-05,103900.0,103890.0,1.46626571]
[1750182538708,9.14e-05,103900.0,103890.0,1.42817074]
[1750182539358,9.14e-05,103900.0,103890.0,1.46625097]
[1750182540180,9.14e-05,103900.0,103890.0,1.40878635]
[1750182540440,9.14e-05,103900.0,103890.0,1.02034941]
[1750182540652,9.14e-05,103900.0,103890.0,1.43722993]
[1750182541080,9.14e-05,103900.0,103890.0,1.26782993]
[1750182541299,9.14e-05,103900.0,103890.0,1.42268908]
[1750182541512,9.14e-05,103900.0,103890.0,1.43722993]
[1750182541788,9.14e-05,103900.0,103890.0,1.40866635]
[1750182542028,9.14e-05,103900.0,103890.0,1.51585097]
[1750182542261,0.14653372,103940.0,103930.0,0.69928219]
[1750182542536,0.56705576,103960.0,103950.0,0.22125909]
[1750182542821,0.90710342,103960.0,103950.0,0.22125909]
[1750182543053,1.11999991,103960.0,103950.0,0.22125909]
[1750182543291,1.52726209,103960.0,103950.0,0.2020201]
[1750182543507,1.52726209,103960.0,103950.0,0.21163983]
[1750182543937,1.52726209,103960.0,103950.0,0.23087882]
[1750182544151,1.53688117,103960.0,103950.0,0.22125946]
[1750182544367,1.53688117,103960.0,103950.0,0.2020201]
[1750182544585,1.52726255,103960.0,103950.0,0.2020201]
[1750182544806,1.52726255,103960.0,103950.0,0.22125927]
[1750182545011,1.51764347,103960.0,103950.0,0.22125927]
[1750182545832,1.51764347,103960.0,103950.0,0.2020201]
[1750182546031,0.01923918,103950.0,103940.0,0.38128269]
[1750182546234,0.01923881,103950.0,103940.0,0.38128269]
[1750182546596,0.02885798,103950.0,103940.0,0.38128269]
[1750182547051,1.09114414,103960.0,103950.0,0.22125909]
[1750182547279,0.50948453,103960.0,103950.0,0.22125909]
[1750182547673,0.57672232,103960.0,103950.0,0.22125927]
[1750182547877,0.57672222,103960.0,103950.0,0.23087863]
[1750182548082,0.55748453,103960.0,103950.0,0.23087863]
[1750182548325,0.49024757,103960.0,103950.0,0.29108072]
[1750182548544,0.49024757,103960.0,103950.0,0.46431863]
[1750182549064,0.49986582,103960.0,103950.0,0.29527863]
[1750182549274,0.49024757,103960.0,103950.0,0.46503863]
[1750182550494,0.49024757,103960.0,103950.0,0.29527863]
[1750182550701,0.49024757,103960.0,103950.0,0.46487863]
[1750182551141,0.49024757,103960.0,103950.0,0.53225036]